bitfinex/quotes_BTCUSD_20240620
["timestamp","ask_amount","ask_price","bid_price","bid_amount"]
[1718872722640,4.62689287,65797.0,65796.0,0.4191]
[1718872722841,2.67098487,65797.0,65796.0,0.4191]
[1718872723042,2.44148487,65797.0,65796.0,0.4191]
[1718872723341,2.49998487,65797.0,65796.0,0.4191]
[1718872723569,2.50098487,65797.0,65796.0,0.4191]
[1718872723930,2.44248487,65797.0,65796.0,0.4191]
[1718872724102,2.4734727,65797.0,65796.0,0.4191]
[1718872724303,2.45948058,65797.0,65796.0,0.4391]
[1718872725023,2.44248476,65797.0,65796.0,0.4191]
[1718872725269,2.47410396,65797.0,65796.0,0.42883829]
[1718872725403,2.46011195,65797.0,65796.0,0.42883829]
[1718872725807,2.30011195,65797.0,65796.0,0.42883829]
[1718872726011,2.24811195,65797.0,65796.0,0.44883829]
[1718872726212,0.4177971,65797.0,65796.0,0.44883829]
[1718872730773,0.4177971,65797.0,65796.0,0.42883829]
[1718872730975,0.4167971,65797.0,65796.0,0.42883829]
[1718872731182,0.4157971,65797.0,65796.0,0.42883829]
[1718872731383,0.89049275,65797.0,65796.0,0.43583829]
[1718872731900,0.4167971,65797.0,65796.0,0.43583829]
[1718872732101,0.4157971,65797.0,65796.0,0.42883829]
[1718872732301,0.4157971,65797.0,65796.0,0.42978429]
[1718872732671,0.4928171,65797.0,65796.0,0.01368429]
[1718872733003,0.5503171,65797.0,65796.0,0.01168429]
[1718872733471,1.02401275,65797.0,65796.0,0.01168429]
[1718872733659,0.5503171,65797.0,65796.0,0.01168429]
[1718872733860,1.02401275,65797.0,65796.0,0.01168429]
[1718872734022,0.5503171,65797.0,65796.0,0.01168429]
[1718872734227,1.02401275,65797.0,65796.0,0.01168429]
[1718872734408,0.424154,65796.0,65793.0,0.009493]
[1718872734610,0.1,65795.0,65793.0,0.009493]
[1718872735170,0.31582945,65794.0,65793.0,0.009493]
[1718872735500,0.41582945,65794.0,65793.0,0.009493]
[1718872735684,0.41582945,65794.0,65793.0,0.011493]
[1718872736078,0.41582945,65794.0,65793.0,0.013493]
[1718872736230,0.41582945,65794.0,65793.0,0.016493]
[1718872736656,0.41582945,65794.0,65793.0,0.014493]
[1718872736853,0.41582945,65794.0,65793.0,0.016493]
[1718872737463,0.41582945,65794.0,65793.0,0.011493]
[1718872737880,0.41582945,65794.0,65793.0,0.015493]
[1718872741556,1.28547362,65794.0,65793.0,0.015493]
[1718872741759,1.28547362,65794.0,65793.0,0.011493]
[1718872741957,1.02149216,65794.0,65793.0,0.011493]
[1718872742167,1.01001349,65794.0,65793.0,0.03732048]
[1718872742475,1.01001349,65794.0,65793.0,0.04232048]
[1718872742476,0.89649051,65794.0,65793.0,0.04232048]
[1718872742654,0.89649051,65794.0,65793.0,0.50267253]
[1718872742881,0.89649051,65794.0,65793.0,0.44932048]
[1718872743058,0.89649051,65794.0,65793.0,0.44732048]
[1718872743261,0.42274634,65794.0,65793.0,0.44732048]
[1718872743690,0.89649051,65794.0,65793.0,0.44732048]
[1718872744077,0.42274634,65794.0,65793.0,0.44732048]
[1718872744227,0.89649051,65794.0,65793.0,0.5998816]
[1718872744389,0.42274634,65794.0,65793.0,0.5998816]
[1718872744599,0.42306822,65794.0,65793.0,0.5998816]
[1718872745001,0.32306822,65794.0,65793.0,0.6988816]
[1718872745198,0.32306822,65794.0,65793.0,0.84320976]
[1718872745503,0.05145485,65794.0,65793.0,0.84320976]
[1718872745779,0.05945485,65794.0,65793.0,0.68370976]
[1718872746013,0.05145485,65794.0,65793.0,0.74120976]
[1718872746244,0.05145485,65794.0,65793.0,0.73920976]
[1718872746520,0.05145485,65794.0,65793.0,0.74320976]
[1718872746756,0.05145485,65794.0,65793.0,0.74120976]
[1718872746961,0.05245485,65794.0,65793.0,0.69270976]
[1718872748465,0.05245485,65794.0,65793.0,0.69070976]
[1718872748911,0.05345485,65794.0,65793.0,0.69270976]
[1718872749949,0.02436425,65802.0,65801.0,0.02]
[1718872750163,0.1883,65807.0,65800.0,0.02]
[1718872750374,0.5,65806.0,65800.0,0.02]
[1718872750571,4.164908,65806.0,65801.0,0.02807782]
[1718872750833,1.02398195,65805.0,65803.0,0.02]
[1718872751016,0.52398195,65805.0,65804.0,0.04334778]
[1718872751429,0.0585,65806.0,65804.0,0.04334778]
[1718872751602,0.0585,65806.0,65805.0,0.04687478]
[1718872752063,0.1585,65806.0,65805.0,0.05494898]
[1718872752277,0.23446,65806.0,65805.0,0.05494898]
[1718872752479,0.17596,65806.0,65805.0,0.05494898]
[1718872752979,3.845868,65806.0,65805.0,0.05494898]
[1718872753188,4.36984995,65806.0,65805.0,0.05494898]
[1718872753381,4.36984995,65806.0,65805.0,0.04687478]
[1718872753581,0.70494195,65806.0,65805.0,0.04687478]
[1718872753723,3.60596,65806.0,65805.0,0.04687478]
[1718872753923,4.12994195,65806.0,65805.0,0.05494898]
[1718872754128,4.12994195,65806.0,65805.0,0.04687478]
[1718872754350,4.12994195,65806.0,65801.0,0.2229]
[1718872754551,0.52398195,65805.0,65801.0,0.2229]
[1718872754756,0.1,65804.0,65801.0,0.2229]
[1718872755155,0.1,65804.0,65802.0,0.00807691]
[1718872755380,0.1,65804.0,65802.0,0.02807691]
[1718872755587,0.1,65804.0,65803.0,0.02]
[1718872756070,0.1,65804.0,65803.0,0.02807601]
[1718872756276,0.102,65804.0,65803.0,0.02807601]
[1718872756489,0.102,65804.0,65803.0,0.00807601]
[1718872756715,0.1605,65804.0,65803.0,0.00807601]
[1718872756928,0.1849,65804.0,65795.0,0.15256112]
[1718872757133,0.11355837,65800.0,65796.0,0.11591151]
[1718872757332,0.1,65803.0,65796.0,0.11591151]
[1718872757333,0.21355837,65799.0,65796.0,0.27655497]
[1718872757546,0.11355837,65799.0,65796.0,0.27655497]
[1718872757747,0.11355837,65799.0,65797.0,0.1183848]
[1718872758215,0.11355837,65799.0,65798.0,0.00808053]
[1718872759719,0.11355837,65799.0,65798.0,0.01208053]
[1718872759916,0.21935378,65799.0,65798.0,0.01208053]
[1718872760328,0.45865378,65799.0,65798.0,0.01508053]
[1718872760764,0.21935378,65799.0,65798.0,0.007]
[1718872761001,0.00579541,65799.0,65798.0,0.72246042]
[1718872761211,0.002,65804.0,65803.0,0.02]
[1718872761412,0.002,65804.0,65803.0,0.68366112]
[1718872761614,0.002,65804.0,65803.0,0.80568431]
[1718872761870,0.0280649,65815.0,65809.0,0.02]
[1718872762075,0.00652967,65810.0,65809.0,0.40815953]
[1718872763546,0.00752967,65810.0,65809.0,0.41615953]
[1718872763734,0.00852967,65810.0,65809.0,0.47822548]
[1718872763962,0.00852967,65810.0,65809.0,0.07756436]
[1718872764167,0.00852967,65810.0,65809.0,0.01849841]
[1718872765191,0.17205837,65816.0,65809.0,0.01849841]
[1718872765192,0.11355837,65814.0,65809.0,0.59845953]
[1718872765394,0.1864,65831.0,65815.0,0.4374]
[1718872765603,0.11355837,65829.0,65817.0,0.02]
[1718872765806,0.1864,65831.0,65817.0,0.02]
[1718872765807,0.07682,65821.0,65817.0,0.02]
[1718872766010,0.07682,65821.0,65818.0,0.08305426]
[1718872766225,0.07682,65821.0,65819.0,0.02]
[1718872766431,0.07682,65821.0,65820.0,0.02]
[1718872766638,0.07782,65821.0,65820.0,0.02769282]
[1718872766839,0.00086,65821.0,65820.0,0.23724919]
[1718872767243,0.00186,65821.0,65820.0,0.21724919]
[1718872768061,0.00186,65821.0,65820.0,0.06468807]
[1718872768706,0.13586,65821.0,65820.0,0.00769282]
[1718872768887,0.10086,65821.0,65820.0,0.00769282]
[1718872769081,0.10086,65821.0,65820.0,0.01]
[1718872769283,0.10086,65821.0,65820.0,0.02768314]
[1718872769436,0.10086,65821.0,65820.0,0.04777831]
[1718872769643,0.10086,65821.0,65820.0,0.05546145]
[1718872769850,0.10086,65821.0,65820.0,0.04777831]
[1718872770223,0.10086,65821.0,65820.0,0.02]
[1718872770224,0.17516,65821.0,65820.0,0.02]
[1718872770436,3.940068,65821.0,65820.0,0.02]
[1718872770662,4.43867135,65821.0,65820.0,0.02]
[1718872770861,4.43867135,65821.0,65820.0,0.01]
[1718872770992,0.77376335,65821.0,65820.0,0.01]
[1718872771215,3.940068,65821.0,65820.0,0.01]
[1718872771395,4.43867135,65821.0,65810.0,0.30534595]
[1718872771599,0.59860335,65820.0,65811.0,0.24943572]
[1718872771820,4.26351135,65820.0,65811.0,0.0968746]
[1718872772021,0.49860335,65819.0,65811.0,0.0968746]
[1718872772261,0.1,65818.0,65812.0,0.05920746]
[1718872772603,0.1,65818.0,65813.0,0.00769267]
[1718872773262,0.1,65818.0,65812.0,0.05920746]
[1718872773868,0.1,65820.0,65812.0,0.05920746]
[1718872774070,0.001,65818.0,65813.0,0.07013342]
[1718872774230,0.001,65818.0,65813.0,0.06244075]
[1718872774814,0.101,65818.0,65813.0,0.06244075]
[1718872775196,0.0168314,65817.0,65813.0,0.06244075]
[1718872775371,0.0168314,65816.0,65814.0,0.00777974]
[1718872775571,0.1,65818.0,65815.0,0.00902205]
[1718872775775,0.01685228,65817.0,65815.0,0.00902205]
[1718872775972,0.01685228,65816.0,65813.0,0.007]
[1718872776179,0.01685228,65815.0,65812.0,0.007]
[1718872776368,0.01685228,65814.0,65806.0,0.02]
[1718872776574,0.01685228,65814.0,65807.0,0.15256112]
[1718872776918,0.01685228,65813.0,65808.0,0.04534979]
[1718872777203,0.01685228,65812.0,65808.0,0.05314001]
[1718872777424,0.1476,65815.0,65812.0,0.011]
[1718872777814,0.1,65814.0,65812.0,0.011]
[1718872777957,0.6,65814.0,65812.0,0.011]
[1718872778160,4.264908,65814.0,65812.0,0.011]
[1718872778362,0.52076579,65813.0,65812.0,0.011]
[1718872778674,4.36195551,65813.0,65812.0,0.011]
[1718872778874,4.28567379,65813.0,65801.0,0.4752]
[1718872779173,0.11327171,65811.0,65802.0,0.04752]
[1718872779379,0.1,65810.0,65808.0,0.013]
[1718872779582,4.264908,65810.0,65808.0,0.013]
[1718872779777,0.52076579,65809.0,65801.0,0.4752]
[1718872779980,0.1,65808.0,65801.0,0.52272]
[1718872780178,0.1,65808.0,65801.0,0.52372]
[1718872780179,0.62076579,65808.0,65801.0,0.52372]
[1718872780379,4.553408,65807.0,65801.0,0.52372]
[1718872780602,0.59860335,65806.0,65802.0,0.052372]
[1718872780808,4.26351135,65806.0,65802.0,0.052372]
[1718872781013,0.50474915,65805.0,65802.0,0.052372]
[1718872781185,0.1,65804.0,65802.0,0.052372]
[1718872781389,0.60474915,65804.0,65802.0,0.052372]
[1718872781787,3.664908,65803.0,65802.0,0.052372]
[1718872782015,4.26965715,65803.0,65802.0,0.052372]
[1718872782555,4.34561715,65803.0,65802.0,0.007]
[1718872782868,4.34561715,65803.0,65793.0,0.009493]
[1718872783073,0.60474915,65802.0,65794.0,0.00781508]
[1718872783507,0.13100498,65802.0,65794.0,0.00781508]
[1718872783709,0.1,65802.0,65795.0,0.08274081]
[1718872783934,0.1,65802.0,65796.0,0.00781327]
[1718872784107,0.1,65806.0,65796.0,0.00781327]
[1718872784549,4.164908,65805.0,65796.0,0.00781327]
[1718872784753,0.60474915,65804.0,65796.0,0.04036798]
[1718872784934,0.60474915,65804.0,65796.0,0.03255471]
[1718872785130,3.664908,65803.0,65796.0,0.03255471]
[1718872785333,0.60474915,65802.0,65796.0,0.03255471]
[1718872785538,0.60474915,65802.0,65797.0,0.01307885]
[1718872785931,0.1,65802.0,65797.0,0.01307885]
[1718872786154,0.1,65802.0,65798.0,0.00782679]
[1718872786395,0.001,65802.0,65798.0,0.00782679]
[1718872787014,0.1,65804.0,65797.0,0.01307885]
[1718872787389,0.0138484,65803.0,65798.0,0.02161353]
[1718872787533,0.0138484,65802.0,65798.0,0.02161353]
[1718872787732,0.0138484,65802.0,65798.0,0.01378674]
[1718872787733,0.0138484,65801.0,65798.0,0.01378674]
[1718872787976,0.5138484,65801.0,65798.0,0.01378674]
[1718872788176,0.1138484,65800.0,65798.0,0.01378674]
[1718872788429,0.0138484,65799.0,65798.0,0.01978674]
[1718872788595,0.0138484,65801.0,65798.0,0.01978674]
[1718872788795,0.0138484,65800.0,65799.0,0.01410823]
[1718872788955,0.0138484,65801.0,65797.0,0.006]
[1718872789150,0.0138484,65800.0,65798.0,0.007]
[1718872789375,0.0138484,65799.0,65798.0,0.007]
[1718872789600,0.0138484,65799.0,65796.0,0.03255471]
[1718872789803,0.1,65803.0,65798.0,0.015]
[1718872790027,0.01385317,65802.0,65798.0,0.015]
[1718872790224,0.01385317,65802.0,65791.0,0.2455]
[1718872790426,0.01385317,65801.0,65794.0,0.1007793]
[1718872790837,0.01385317,65800.0,65794.0,0.1007793]
[1718872791041,0.51385317,65800.0,65794.0,0.1007793]
[1718872791245,0.11385317,65799.0,65798.0,0.396]
[1718872791447,0.11385317,65799.0,65798.0,0.44862723]
[1718872791644,0.11385317,65799.0,65798.0,0.06062723]
[1718872791872,0.11385317,65799.0,65798.0,0.008]
[1718872792085,0.11385317,65799.0,65798.0,0.01583072]
[1718872792290,0.01393371,65799.0,65798.0,0.01583072]
[1718872792617,0.01393371,65799.0,65798.0,0.00783072]
[1718872792820,0.01393371,65799.0,65798.0,0.01683072]
[1718872793019,0.11393371,65804.0,65798.0,0.04577424]
[1718872793222,0.01393371,65803.0,65799.0,0.02]
[1718872793453,0.01393371,65802.0,65799.0,0.02]
[1718872793658,0.01393371,65801.0,65799.0,0.02]
[1718872793857,0.01393371,65800.0,65799.0,0.02]
[1718872794082,0.01393371,65800.0,65799.0,0.0368593]
[1718872794491,0.01393371,65800.0,65799.0,0.04468911]
[1718872794695,0.01393371,65800.0,65799.0,0.04968911]
[1718872795099,0.07263371,65800.0,65799.0,0.01282981]
[1718872795335,4.14084171,65800.0,65799.0,0.005]
[1718872795454,4.74583173,65800.0,65799.0,0.005]
[1718872795667,4.76479211,65800.0,65799.0,0.005]
[1718872795884,4.76479211,65800.0,65798.0,0.003]
[1718872796075,0.61892373,65799.0,65798.0,0.003]
[1718872796289,4.36149223,65799.0,65798.0,0.003]
[1718872796485,4.36149223,65799.0,65793.0,0.009493]
[1718872796689,0.0587,65795.0,65793.0,0.009493]
[1718872796890,0.01393371,65794.0,65793.0,0.009493]
[1718872799325,0.01393371,65794.0,65793.0,0.011493]
[1718872800099,0.01393371,65794.0,65793.0,0.013493]
[1718872800100,3.77884171,65794.0,65793.0,0.013493]
[1718872800252,3.86623426,65794.0,65793.0,0.013493]
[1718872800457,3.95230055,65794.0,65793.0,0.013493]
[1718872800652,0.33199516,65794.0,65793.0,0.013493]
[1718872800852,0.11363938,65794.0,65793.0,0.009493]
[1718872802848,0.20033938,65794.0,65793.0,0.009493]
[1718872802970,0.30233938,65794.0,65793.0,0.009493]
[1718872803440,0.30633938,65794.0,65793.0,0.009493]
[1718872803881,0.30233938,65794.0,65793.0,0.009493]
[1718872804487,0.30433938,65794.0,65793.0,0.009493]
[1718872805341,0.54153938,65794.0,65793.0,0.009493]
[1718872805806,0.61755938,65794.0,65793.0,0.009493]
[1718872807445,0.85299969,65794.0,65793.0,0.009493]
[1718872807655,4.51790769,65794.0,65793.0,0.009493]
[1718872807857,4.51790769,65794.0,65793.0,0.0193823]
[1718872808022,2.26179969,65794.0,65793.0,0.009493]
[1718872808228,2.07440714,65794.0,65793.0,0.009493]
[1718872812291,2.07440714,65794.0,65790.0,0.0894]
[1718872812519,0.16168714,65793.0,65790.0,0.0894]
[1718872812720,3.54086307,65793.0,65790.0,0.12443]
[1718872812936,0.33192339,65792.0,65791.0,0.4363]
[1718872813155,0.11360199,65792.0,65791.0,0.4363]
[1718872813354,0.11360199,65792.0,65791.0,0.44415065]
[1718872813703,0.11360199,65792.0,65791.0,0.49100872]
[1718872814110,0.01360199,65792.0,65791.0,0.49100872]
[1718872814359,0.01360199,65792.0,65791.0,0.49600872]
[1718872814574,0.01360199,65792.0,65791.0,0.49400872]
[1718872814993,0.1541315,65800.0,65794.0,0.01]
[1718872815220,0.50630454,65799.0,65795.0,0.06284387]
[1718872815437,0.10630454,65798.0,65795.0,0.0706909]
[1718872815651,0.00630454,65797.0,65796.0,0.0556849]
[1718872816110,0.08232454,65797.0,65796.0,0.06353102]
[1718872816276,0.86532454,65797.0,65796.0,0.06353102]
[1718872816514,0.18232454,65797.0,65796.0,0.06353102]
[1718872816899,0.18232454,65797.0,65796.0,0.00784612]
[1718872817141,0.18232454,65797.0,65796.0,0.01784612]
[1718872817348,0.18432454,65797.0,65796.0,0.01]
[1718872817518,0.60532454,65797.0,65796.0,0.43414612]
[1718872817758,0.70532454,65797.0,65796.0,0.43414612]
[1718872817924,0.70532454,65797.0,65796.0,0.52315853]
[1718872818164,0.70332454,65797.0,65796.0,0.52315853]
[1718872818815,0.70332454,65797.0,65796.0,0.42414612]
[1718872818996,0.70332454,65797.0,65796.0,0.23344612]
[1718872819200,0.70132454,65797.0,65796.0,0.23344612]
[1718872819550,0.70332454,65797.0,65796.0,0.23344612]
[1718872819750,0.70532454,65797.0,65796.0,0.23344612]
[1718872819956,0.70332454,65797.0,65796.0,0.23344612]
[1718872820157,0.70332454,65797.0,65796.0,0.23944612]
[1718872820362,0.70132454,65797.0,65796.0,0.23944612]
[1718872820569,0.70232454,65797.0,65796.0,0.01984612]
[1718872820955,0.88402454,65797.0,65796.0,0.01984612]
[1718872821372,0.89064454,65797.0,65796.0,0.01384612]
[1718872821577,0.90602454,65797.0,65796.0,0.01584612]
[1718872821793,0.97234454,65797.0,65796.0,0.008]
[1718872822218,1.0856756,65797.0,65796.0,0.008]
[1718872822641,0.97234454,65797.0,65796.0,0.008]
[1718872823485,0.97234454,65797.0,65796.0,0.002]
[1718872823704,0.00762,65795.0,65790.0,0.0894]
[1718872823907,0.06632,65791.0,65790.0,0.0894]
[1718872824109,0.5983622,65791.0,65790.0,0.0894]
[1718872824317,4.04868854,65791.0,65790.0,0.0894]
[1718872824566,0.83599374,65791.0,65790.0,0.0894]
[1718872824781,4.20163904,65791.0,65790.0,0.0894]
[1718872824929,4.47438554,65791.0,65790.0,0.0904]
[1718872825407,4.41668554,65791.0,65790.0,0.0964]
[1718872825618,4.47538554,65791.0,65790.0,0.0964]
[1718872825822,4.41668554,65791.0,65790.0,0.0964]
[1718872826044,4.47538554,65791.0,65790.0,0.0964]
[1718872826641,4.55140554,65791.0,65790.0,0.0964]
[1718872826846,4.07188554,65791.0,65790.0,0.10604]
[1718872827059,2.09507104,65791.0,65790.0,0.10604]
[1718872827258,1.90767849,65791.0,65790.0,0.10604]
[1718872827462,0.55967849,65791.0,65790.0,0.10604]
[1718872827785,0.55567849,65791.0,65790.0,0.10604]
[1718872827986,0.18332454,65791.0,65790.0,0.10504]
[1718872828212,3.62418854,65791.0,65790.0,0.10504]
[1718872828413,0.41149374,65791.0,65790.0,0.0964]
[1718872828721,2.97549374,65791.0,65790.0,0.0894]
[1718872828929,2.51549374,65791.0,65790.0,0.0894]
[1718872829329,2.86549374,65791.0,65790.0,0.0894]
[1718872830077,2.48249374,65791.0,65790.0,0.0944]
[1718872830281,2.07449374,65791.0,65790.0,0.0944]
[1718872830487,1.84210119,65791.0,65790.0,0.15162]
[1718872830834,0.96210119,65791.0,65790.0,0.03244708]
[1718872831004,0.92232454,65791.0,65790.0,0.03844708]
[1718872831326,0.92232454,65791.0,65790.0,0.04930315]
[1718872831524,0.92132454,65791.0,65790.0,0.04330315]
[1718872831977,0.85332454,65791.0,65790.0,0.00785607]
[1718872832121,0.85332454,65791.0,65790.0,0.01085607]
[1718872832334,0.85332454,65791.0,65790.0,0.01685607]
[1718872832713,0.77730454,65791.0,65790.0,0.01685607]
[1718872833119,0.77730454,65791.0,65790.0,0.02685607]
[1718872833346,0.68730454,65791.0,65790.0,0.44165607]
[1718872833553,0.68730454,65791.0,65790.0,0.48582168]
[1718872833774,0.10630454,65791.0,65790.0,0.48582168]
[1718872833978,0.10730454,65791.0,65790.0,0.49082168]
[1718872835322,0.00730454,65791.0,65790.0,0.6433828]
[1718872837209,0.001,65791.0,65790.0,0.6433828]
[1718872837382,0.01903157,65791.0,65790.0,0.6433828]
[1718872838220,0.01903157,65791.0,65790.0,0.59921719]
[1718872844505,0.01891266,65791.0,65790.0,0.59921719]
[1718872847210,0.001,65791.0,65790.0,0.59921719]
[1718872847411,0.01873152,65791.0,65790.0,0.59921719]
[1718872848225,0.01873152,65791.0,65790.0,0.40971719]
[1718872848821,0.01873152,65791.0,65790.0,0.01885607]
[1718872849038,0.38033152,65791.0,65790.0,0.01885607]
[1718872849246,4.11903135,65791.0,65790.0,0.01885607]
[1718872849458,4.24334176,65791.0,65790.0,0.011]
[1718872849684,4.418334,65791.0,65790.0,0.011]
[1718872849908,4.4712845,65791.0,65790.0,0.011]
[1718872850145,4.5299845,65791.0,65790.0,0.011]
[1718872850355,4.52538561,65791.0,65790.0,0.011]
[1718872850579,4.59252162,65791.0,65790.0,0.006]
[1718872850789,0.1767,65784.0,65783.0,0.009493]
[1718872850998,0.30386753,65784.0,65783.0,0.009493]
[1718872851207,0.30386753,65784.0,65783.0,0.01582348]
[1718872851418,3.86842374,65784.0,65783.0,0.009493]
[1718872851634,4.05103598,65784.0,65783.0,0.009493]
[1718872851852,4.34382222,65784.0,65783.0,0.009493]
[1718872852473,4.34313001,65784.0,65783.0,0.009493]
[1718872852704,4.42677001,65784.0,65783.0,0.009493]
[1718872853944,4.42677001,65784.0,65783.0,0.010493]
[1718872854430,4.54802261,65784.0,65783.0,0.010493]
[1718872854837,4.66010545,65784.0,65783.0,0.010493]
[1718872855672,1.94504969,65784.0,65783.0,0.010493]
[1718872855878,0.43962921,65784.0,65783.0,0.010493]
[1718872856079,0.37782297,65784.0,65783.0,0.0938423]
[1718872856283,0.32444013,65784.0,65783.0,0.10018148]
[1718872856483,0.32444013,65784.0,65783.0,0.04148148]
[1718872856688,0.32444013,65784.0,65783.0,0.05148148]
[1718872857564,0.32444013,65784.0,65783.0,0.01783218]
[1718872857762,0.32444013,65784.0,65783.0,0.02783218]
[1718872857937,0.32444013,65784.0,65783.0,0.01783218]
[1718872858271,0.32444013,65784.0,65783.0,0.02783218]
[1718872858983,0.32444013,65784.0,65783.0,0.5846933]
[1718872859181,0.32444013,65784.0,65783.0,0.65336263]
[1718872859412,0.32444013,65784.0,65783.0,0.75536263]
[1718872859722,0.32444013,65784.0,65783.0,0.75336263]
[1718872859928,0.24842013,65784.0,65783.0,0.75236263]
[1718872860166,0.24774378,65784.0,65783.0,0.75936263]
[1718872860367,0.24874378,65784.0,65783.0,0.75936263]
[1718872860541,0.24874378,65784.0,65783.0,0.65936263]
[1718872860853,0.24874378,65784.0,65783.0,0.65136263]
[1718872860854,0.24774378,65784.0,65783.0,0.65136263]
[1718872861049,0.24874378,65784.0,65783.0,0.67236263]
[1718872862372,0.24870068,65784.0,65783.0,0.67236263]
[1718872862678,0.14870068,65784.0,65783.0,0.77436263]
[1718872866926,0.14870068,65784.0,65783.0,0.67236263]
[1718872867352,0.14870068,65784.0,65783.0,0.77436263]
[1718872867933,0.14870068,65784.0,65783.0,0.67236263]
[1718872869208,0.14870068,65784.0,65783.0,0.77436263]
[1718872869391,0.14924209,65784.0,65783.0,0.77236263]
[1718872870575,0.14924209,65784.0,65783.0,0.67236263]
[1718872870778,0.14924209,65784.0,65783.0,0.77236263]
[1718872871343,0.14924209,65784.0,65783.0,0.77436263]
[1718872871552,0.14924152,65784.0,65783.0,1.47710563]
[1718872871779,0.139806,65784.0,65783.0,1.78113463]
[1718872873331,0.138806,65784.0,65783.0,1.93443463]
[1718872873877,0.139806,65784.0,65783.0,1.92843463]
[1718872874082,0.139806,65784.0,65783.0,2.23246363]
[1718872874295,0.1222526,65784.0,65783.0,2.23246363]
[1718872874809,0.1222526,65784.0,65783.0,2.24646363]
[1718872875051,0.001,65784.0,65783.0,2.24646363]
[1718872875606,0.001,65784.0,65783.0,2.22446363]
[1718872875813,0.00086,65790.0,65789.0,1.389305]
[1718872876018,0.33431267,65790.0,65789.0,1.82749662]
[1718872876219,0.33431267,65790.0,65789.0,1.83381652]
[1718872876421,0.33431267,65790.0,65789.0,2.29811852]
[1718872877481,0.33431267,65790.0,65789.0,2.32611852]
[1718872878255,0.31663418,65790.0,65789.0,2.32611852]
[1718872879038,0.33431721,65790.0,65789.0,2.32611852]
[1718872879360,0.31663418,65790.0,65789.0,2.32611852]
[1718872881450,0.31663418,65790.0,65789.0,2.23801852]
[1718872885280,0.31663418,65790.0,65789.0,2.22401852]
[1718872885513,0.00086,65790.0,65789.0,2.22401852]
[1718872885751,0.00086,65790.0,65789.0,2.54202052]
[1718872885989,0.00086,65790.0,65789.0,2.52802052]
[1718872886210,0.00086,65790.0,65789.0,2.54202052]
[1718872886416,0.04993369,65815.0,65814.0,0.01]
[1718872886623,0.39305629,65815.0,65814.0,0.22116112]
[1718872886824,0.39305629,65815.0,65814.0,0.22745544]
[1718872887034,0.49305629,65815.0,65814.0,0.22745544]
[1718872887247,0.46695798,65815.0,65814.0,0.31704588]
[1718872888018,0.46695798,65815.0,65814.0,0.00629432]
[1718872888019,0.88345798,65815.0,65814.0,0.00629432]
[1718872888441,0.69285798,65815.0,65808.0,0.01]
[1718872888656,0.69285798,65815.0,65809.0,0.15256112]
[1718872888657,0.1906,65813.0,65809.0,0.15256112]
[1718872888842,0.31571144,65812.0,65809.0,0.15885385]
[1718872889091,0.3431226,65811.0,65809.0,0.15885385]
[1718872889295,0.1906,65813.0,65810.0,0.01688539]
[1718872889495,0.34306489,65812.0,65810.0,0.02317763]
[1718872889705,0.35735538,65815.0,65810.0,0.00629224]
[1718872889706,0.75956489,65811.0,65810.0,0.00629224]
[1718872889918,0.75956489,65811.0,65800.0,0.01]
[1718872889919,0.56896489,65811.0,65800.0,0.01]
[1718872890120,0.56896489,65811.0,65803.0,0.20694112]
[1718872890121,0.63366489,65810.0,65803.0,0.20694112]
[1718872890324,0.34306489,65809.0,65803.0,0.15885679]
[1718872890475,0.34306489,65808.0,65803.0,0.15885679]
[1718872890676,0.44306489,65807.0,65803.0,0.15885679]
[1718872890879,0.2906,65810.0,65803.0,0.15885679]
[1718872890880,0.34306489,65806.0,65803.0,0.15885679]
[1718872891117,0.34306489,65805.0,65804.0,0.01688568]
[1718872891278,0.34306489,65805.0,65804.0,0.1694468]
[1718872891478,0.34306489,65805.0,65804.0,0.17574198]
[1718872891907,0.85956489,65805.0,65804.0,0.00629518]
[1718872892119,0.85956489,65805.0,65803.0,0.006]
[1718872892397,0.44294344,65804.0,65796.0,0.7811]
[1718872892600,0.34294344,65803.0,65797.0,0.28548972]
[1718872892818,0.43350534,65802.0,65797.0,0.15885972]
[1718872893017,0.34294457,65801.0,65797.0,0.15885972]
[1718872893258,0.44294457,65800.0,65797.0,0.15256112]
[1718872893410,0.44294457,65799.0,65798.0,0.01688597]
[1718872893596,0.34294457,65799.0,65798.0,0.01688597]
[1718872893797,0.44294457,65799.0,65798.0,0.02318408]
[1718872893999,0.62174457,65799.0,65798.0,0.00629811]
[1718872894208,0.62174457,65799.0,65790.0,0.16255414]
[1718872894209,0.2343,65798.0,65790.0,0.16255414]
[1718872894458,0.2343,65798.0,65791.0,0.15886266]
[1718872894459,0.34308793,65797.0,65791.0,0.15886266]
[1718872894664,0.34308793,65796.0,65791.0,0.21557782]
[1718872895054,0.44308793,65795.0,65791.0,0.21557782]
[1718872895265,0.13169724,65794.0,65791.0,0.21557782]
[1718872895483,0.28817115,65811.0,65791.0,0.21557782]
[1718872895484,0.2343,65792.0,65791.0,0.00630154]
[1718872895683,0.24373727,65792.0,65791.0,0.00630154]
[1718872895886,0.24373727,65792.0,65789.0,0.000946]
[1718872895998,0.2343,65792.0,65791.0,0.002]
[1718872896209,0.25135606,65792.0,65791.0,0.00631106]
[1718872897541,0.00762,65791.0,65789.0,0.000946]
[1718872897758,0.00943606,65790.0,65789.0,0.000946]
[1718872898001,0.18823606,65790.0,65789.0,0.000946]
[1718872898228,0.93015606,65790.0,65789.0,0.000946]
[1718872898438,0.53015606,65790.0,65789.0,0.000946]
[1718872898659,0.54553606,65790.0,65789.0,0.000946]
[1718872898863,0.55315606,65790.0,65789.0,0.000946]
[1718872899073,0.55315606,65790.0,65789.0,0.005946]
[1718872899542,0.62917606,65790.0,65789.0,0.005946]
[1718872900577,0.62155606,65790.0,65789.0,0.007946]
[1718872901167,0.62155606,65790.0,65789.0,0.005946]
[1718872901535,0.62155606,65790.0,65789.0,0.000946]
[1718872901733,0.63117526,65790.0,65789.0,0.000946]
[1718872901887,0.62917526,65790.0,65789.0,0.000946]
[1718872902110,0.62917517,65790.0,65789.0,0.000946]
[1718872902316,0.63117517,65790.0,65789.0,0.000946]
[1718872905301,0.6459436,65790.0,65789.0,0.000946]
[1718872906788,0.8529751,65790.0,65789.0,0.000946]
[1718872906947,4.3938391,65790.0,65789.0,0.000946]
[1718872909158,4.50015736,65790.0,65789.0,0.000946]
[1718872909497,4.50015736,65790.0,65777.0,0.4752]
[1718872909498,0.42882,65784.0,65777.0,0.4752]